bitfinex/quotes_ETHUSD_20250814
["timestamp","ask_amount","ask_price","bid_price","bid_amount"]
[1755149318870,0.4506,4734.0,4733.8,0.19505879]
[1755149319078,0.5367,4733.9,4733.8,0.19505879]
[1755149319277,0.9873,4733.9,4733.8,3.53805879]
[1755149319479,0.9873,4733.9,4733.8,3.53705879]
[1755149319683,0.9873,4733.9,4733.8,3.342]
[1755149320004,0.9873,4733.9,4733.1,5.065]
[1755149320300,0.4311,4733.8,4733.2,3.53704678]
[1755149320503,0.4311,4733.8,4733.3,0.19504678]
[1755149320878,0.1056,4733.4,4733.3,0.19504678]
[1755149321213,0.1056,4733.4,4733.3,3.339]
[1755149321509,0.1056,4733.4,4733.3,3.53404678]
[1755149321715,0.1056,4733.4,4733.3,0.65144678]
[1755149321884,0.03543518,4733.4,4733.3,4.26994678]
[1755149322085,0.03543518,4733.4,4733.3,3.99044678]
[1755149322808,0.03543518,4733.4,4733.3,3.53404678]
[1755149324829,0.03543518,4733.4,4733.3,0.19504678]
[1755149324977,0.03543518,4733.4,4733.3,3.53304678]
[1755149325177,0.03543518,4733.4,4733.3,0.19504678]
[1755149325381,0.03543518,4733.4,4733.3,3.53104678]
[1755149325675,0.03543518,4733.4,4733.3,3.53204678]
[1755149327511,0.03543518,4733.4,4733.3,0.19604678]
[1755149327811,0.91713518,4733.4,4733.3,3.52904678]
[1755149328182,0.91713518,4733.4,4733.3,0.19604678]
[1755149328382,0.91713518,4733.4,4733.3,0.001]
[1755149328778,0.91713518,4733.4,4733.3,3.334]
[1755149328980,0.91713518,4733.4,4733.3,0.001]
[1755149329179,0.91713518,4733.4,4733.3,3.335]
[1755149330379,0.8817,4734.1,4733.3,3.335]
[1755149330605,1.77147999,4734.0,4733.3,3.335]
[1755149330790,0.1056,4733.4,4733.3,0.001]
[1755149330995,0.9873,4733.4,4733.3,0.001]
[1755149331199,0.9873,4733.4,4733.3,3.334]
[1755149332218,0.9873,4733.4,4733.3,3.52993443]
[1755149334087,0.78953436,4733.4,4733.3,3.52993443]
[1755149334413,0.78953436,4733.4,4733.3,0.19693443]
[1755149334613,0.78953436,4733.4,4733.3,3.52893443]
[1755149335110,0.78953436,4733.4,4733.3,3.329]
[1755149336980,0.78953436,4733.4,4733.3,3.327]
[1755149337786,0.4276,4733.8,4733.3,3.327]
[1755149338022,0.181648,4733.7,4733.3,3.327]
[1755149339192,0.9267,4733.6,4733.3,3.327]
[1755149339782,0.9267,4733.6,4733.1,5.065]
[1755149339985,0.4276,4733.6,4733.2,3.326]
[1755149341789,0.4276,4733.5,4733.1,5.065]
[1755149341990,0.88977999,4734.0,4733.2,3.321]
[1755149341991,0.9267,4733.4,4733.2,3.321]
[1755149342189,0.9267,4733.3,4733.2,3.321]
[1755149342924,0.9267,4733.3,4733.2,3.323]
[1755149343098,0.9267,4733.3,4733.2,5.063]
[1755149343620,0.9267,4733.3,4733.0,5.063]
[1755149343924,0.9267,4733.2,4733.0,5.063]
[1755149344126,0.9267,4733.1,4733.0,5.063]
[1755149344314,0.9267,4733.1,4733.0,8.385]
[1755149344492,0.9267,4733.1,4733.0,5.063]
[1755149344697,0.9267,4733.1,4733.0,8.385]
[1755149345703,0.9267,4733.1,4733.0,8.384]
[1755149346028,0.9267,4733.1,4733.0,8.383]
[1755149346229,0.9267,4733.1,4733.0,5.063]
[1755149346624,0.9267,4733.1,4732.3,0.001]
[1755149346927,0.9267,4733.0,4732.3,0.001]
[1755149347228,0.9267,4732.9,4732.3,0.001]
[1755149347431,0.4991,4732.9,4732.4,3.318]
[1755149347737,0.9267,4732.8,4732.3,0.001]
[1755149347902,0.9267,4732.7,4732.4,3.318]
[1755149348098,0.9267,4732.6,4732.4,3.318]
[1755149348299,0.4276,4732.5,4732.3,0.001]
[1755149348524,3.0,4733.9,4732.4,3.317]
[1755149348734,2.10112725,4733.8,4732.4,3.317]
[1755149349143,3.9267,4733.7,4733.0,0.001]
[1755149349342,3.0,4733.7,4733.1,3.317]
[1755149349503,0.002,4733.4,4733.2,3.317]
[1755149349703,1.31957,4733.3,4733.0,0.001]
[1755149349915,0.39287,4733.3,4733.0,0.001]
[1755149350233,0.9267,4733.2,4733.0,0.001]
[1755149350533,0.9267,4733.1,4733.0,0.001]
[1755149350835,1.0323,4733.1,4733.0,0.001]
[1755149351032,1.175017,4733.1,4733.0,3.317]
[1755149351221,1.175017,4733.1,4732.3,0.001]
[1755149351424,0.142717,4733.1,4732.3,0.001]
[1755149351604,0.1056,4732.4,4732.3,0.001]
[1755149351805,1.0323,4732.4,4732.3,0.001]
[1755149353136,1.0323,4732.4,4732.3,3.317]
[1755149353344,1.0323,4732.4,4732.0,0.001]
[1755149353556,0.1056,4732.1,4732.0,0.001]
[1755149353845,1.0323,4732.1,4732.0,0.001]
[1755149355124,1.0323,4732.1,4732.0,3.313]
[1755149355438,1.0323,4732.1,4731.8,0.001]
[1755149355642,0.9267,4732.0,4731.8,0.001]
[1755149355826,0.4276,4731.9,4731.8,0.001]
[1755149356027,0.9267,4731.9,4731.8,0.001]
[1755149356243,0.1056,4732.1,4731.8,0.001]
[1755149356838,0.5332,4732.1,4731.8,0.001]
[1755149357218,0.5332,4732.1,4731.9,3.309]
[1755149357458,0.9267,4732.0,4731.8,0.001]
[1755149357758,0.1056,4732.1,4731.9,3.309]
[1755149358263,0.4276,4732.0,4731.8,0.001]
[1755149358416,0.4276,4732.0,4731.9,3.308]
[1755149358739,0.4276,4732.0,4731.8,0.001]
[1755149359041,0.4276,4732.0,4731.9,3.308]
[1755149359414,0.4276,4732.0,4731.8,0.001]
[1755149359647,0.6047,4732.1,4731.9,3.307]
[1755149359842,0.4276,4732.0,4731.8,0.001]
[1755149360083,0.6047,4732.1,4731.9,3.307]
[1755149360288,0.1056,4732.1,4731.9,3.307]
[1755149360471,0.4991,4732.0,4731.8,0.001]
[1755149360649,0.1056,4732.1,4731.9,3.306]
[1755149360983,0.1056,4732.1,4732.0,3.305]
[1755149361187,1.0323,4732.1,4732.0,3.305]
[1755149361752,0.5332,4732.1,4732.0,3.305]
[1755149361952,0.5332,4732.1,4731.8,0.001]
[1755149362152,0.5332,4732.1,4732.0,3.304]
[1755149362153,0.1056,4732.1,4732.0,3.304]
[1755149362352,0.5712,4732.1,4732.0,3.304]
[1755149362591,1.0242,4732.1,4732.0,0.1969107]
[1755149363093,5.71415238,4732.1,4732.0,0.1969107]
[1755149364272,4.0242,4732.1,4732.0,3.4999107]
[1755149364447,3.0,4732.0,4731.8,0.001]
[1755149364651,0.4656,4731.9,4731.8,0.001]
[1755149365260,0.1056,4732.1,4731.8,0.001]
[1755149366157,0.1056,4732.1,4731.9,3.3]
[1755149366658,0.1056,4732.1,4731.8,0.001]
[1755149366959,3.9186,4732.0,4731.9,3.3]
[1755149367161,4.51502,4732.0,4731.8,0.001]
[1755149367361,0.9186,4731.9,4731.8,0.001]
[1755149369288,0.9186,4731.9,4731.8,5.065]
[1755149369498,0.9186,4731.9,4731.8,3.298]
[1755149369697,0.9186,4731.9,4731.6,5.065]
[1755149369869,0.1056,4731.7,4731.6,5.065]
[1755149370074,3.5712,4731.7,4731.5,5.066]
[1755149370273,0.9186,4731.6,4731.3,5.065]
[1755149370771,0.1056,4731.4,4731.3,5.065]
[1755149371093,1.0242,4731.4,4731.1,0.02]
[1755149371293,0.86802,4731.3,4731.1,0.02]
[1755149371669,0.86802,4731.3,4731.2,3.296]
[1755149372270,0.86802,4731.3,4731.1,0.02]
[1755149372594,0.4656,4731.2,4731.1,0.02]
[1755149372980,0.9186,4731.2,4731.1,3.315]
[1755149373179,0.9186,4731.2,4730.3,0.001]
[1755149373180,2.64879438,4731.2,4730.3,0.001]
[1755149373373,0.1056,4730.9,4730.3,0.001]
[1755149373577,4.0242,4730.9,4730.3,0.001]
[1755149373980,0.1056,4730.9,4730.3,0.001]
[1755149374694,1.0242,4730.9,4730.3,0.001]
[1755149374894,5.71415238,4730.9,4730.3,0.001]
[1755149375083,5.71415238,4730.9,4730.8,3.298]
[1755149376368,5.71415238,4730.9,4730.8,0.19821491]
[1755149376570,5.71415238,4730.9,4730.8,3.49421491]
[1755149377601,5.71415238,4730.9,4730.8,0.19821491]
[1755149377802,5.26115238,4730.9,4730.8,3.49321491]
[1755149377966,3.0,4730.8,4730.5,5.065]
[1755149378171,0.1056,4730.6,4730.5,5.065]
[1755149378884,0.1056,4730.6,4730.5,5.9182]
[1755149380102,0.1056,4730.6,4730.5,8.8415]
[1755149380288,0.1056,4730.6,4730.5,8.36]
[1755149380488,0.1056,4730.6,4730.5,5.065]
[1755149380803,0.1056,4730.6,4730.5,8.359]
[1755149381276,0.1056,4730.6,4730.5,5.065]
[1755149381482,0.1056,4730.6,4730.5,8.359]
[1755149381695,0.1056,4730.6,4730.5,5.065]
[1755149382089,0.5712,4730.6,4730.5,5.065]
[1755149382418,0.5712,4730.6,4730.3,0.001]
[1755149382419,0.5712,4730.6,4730.4,5.065]
[1755149382586,0.5586,4730.6,4730.4,5.065]
[1755149382784,0.4656,4730.5,4730.4,5.065]
[1755149382984,0.1056,4730.6,4730.4,5.065]
[1755149383810,0.1056,4730.6,4730.5,3.293]
[1755149384807,0.1056,4730.6,4730.5,3.292]
[1755149387212,0.1056,4730.6,4730.4,5.065]
[1755149387413,0.1056,4730.6,4730.5,3.292]
[1755149388125,0.1056,4730.6,4730.4,5.065]
[1755149388415,0.1056,4730.6,4730.5,3.29]
[1755149389216,0.1056,4730.6,4730.5,4.1432]
[1755149389886,0.1056,4730.6,4730.5,4.3403419]
[1755149390519,0.1056,4730.6,4730.5,3.9686419]
[1755149390691,0.1056,4730.6,4730.5,4.3403419]
[1755149390887,0.1056,4730.6,4730.5,0.6786419]
[1755149391086,0.1056,4730.6,4730.5,4.3383419]
[1755149391505,0.1056,4730.6,4730.4,5.065]
[1755149391707,0.9206,4730.5,4730.4,5.065]
[1755149391887,0.9206,4730.5,4730.3,0.001]
[1755149392086,0.4862,4730.4,4730.3,0.001]
[1755149392313,0.9206,4730.4,4730.3,0.001]
[1755149392720,5.61075238,4730.4,4730.3,0.001]
[1755149392906,3.9206,4730.4,4730.3,0.001]
[1755149393090,3.9206,4730.4,4730.3,3.298]
[1755149393523,3.9206,4730.4,4730.1,0.02]
[1755149393723,0.1056,4730.2,4730.1,0.02]
[1755149393903,0.54,4730.2,4730.1,0.02]
[1755149394218,1.42882,4730.2,4730.1,0.02]
[1755149394418,1.0262,4730.2,4730.1,0.02]
[1755149395125,1.0262,4730.2,4730.1,3.316]
[1755149395897,1.0262,4730.2,4730.1,3.314]
[1755149396231,1.0262,4730.2,4730.0,5.067]
[1755149396430,0.1056,4730.2,4730.1,3.294]
[1755149396996,1.0262,4730.2,4730.1,3.294]
[1755149397199,1.0262,4730.2,4729.1,0.02]
[1755149397400,0.1056,4729.2,4729.1,0.02]
[1755149397610,0.1056,4729.2,4729.1,3.327]
[1755149398093,1.0262,4729.2,4729.1,0.02]
[1755149398299,1.0262,4729.2,4729.1,3.327]
[1755149398928,1.0262,4729.2,4729.1,3.328]
[1755149399132,1.0262,4729.2,4729.1,3.327]
[1755149399501,1.0262,4729.2,4729.1,0.02]
[1755149399828,1.0262,4729.2,4729.1,3.327]
[1755149400398,1.0262,4729.2,4729.1,3.326]
[1755149400852,1.0262,4729.2,4729.1,0.02]
[1755149401035,3.0,4729.1,4728.7,5.066]
[1755149401332,0.1056,4728.8,4728.7,5.066]
[1755149401494,0.1056,4728.8,4728.1,0.02]
[1755149401699,0.1056,4728.2,4728.1,5.087]
[1755149401900,0.06721222,4728.2,4728.1,5.087]
[1755149402148,1.85262,4729.0,4728.1,5.087]
[1755149402303,0.1056,4728.2,4728.1,5.087]
[1755149402937,0.1056,4728.2,4728.1,8.391]
[1755149403539,0.1056,4728.2,4728.1,8.58823339]
[1755149405608,0.1056,4728.2,4728.1,9.05903339]
[1755149406237,0.1056,4728.2,4728.1,8.58823339]
[1755149407349,0.1056,4728.2,4728.1,9.43073339]
[1755149409811,0.07610227,4728.2,4728.1,9.43073339]
[1755149410246,0.1056,4728.2,4728.1,9.43073339]
[1755149410430,0.1056,4728.2,4728.1,12.43073339]
[1755149411012,0.02215869,4728.2,4728.1,12.43073339]
[1755149411215,0.02215869,4728.2,4728.1,14.32586956]
[1755149411444,0.9206,4730.6,4728.2,3.0]
[1755149411611,0.1056,4728.4,4728.3,3.49523339]
[1755149411815,0.1056,4728.4,4728.3,4.33773339]
[1755149412108,0.1056,4728.4,4728.3,0.19723339]
[1755149412338,0.1056,4728.4,4728.3,1.03973339]
[1755149412538,0.1056,4728.4,4728.3,4.33651803]
[1755149415246,0.1056,4728.4,4728.3,4.33652731]
[1755149416353,12.88527419,4730.5,4728.3,4.33652731]
[1755149416354,0.1056,4728.8,4728.3,4.33652731]
[1755149416529,0.9226,4730.7,4728.5,1.89513617]
[1755149416728,0.9226,4730.7,4729.5,1.51312216]
[1755149416941,0.9226,4730.7,4729.6,3.49402731]
[1755149417147,0.9226,4730.7,4729.7,0.19702731]
[1755149417340,0.4882,4730.7,4729.8,3.49402731]
[1755149417545,0.4344,4730.6,4729.9,3.49402731]
[1755149417844,0.4862,4730.5,4730.0,3.49302731]
[1755149418150,0.9206,4730.4,4730.1,0.19702731]
[1755149418357,0.9206,4730.3,4730.2,3.49302731]
[1755149418552,0.002,4730.7,4730.2,8.56002731]
[1755149418753,0.4344,4730.6,4730.3,0.19702731]
[1755149418956,0.4344,4730.6,4730.4,3.49302731]
[1755149419254,0.1056,4730.5,4730.4,3.296]
[1755149419456,0.1056,4730.5,4730.4,3.49299825]
[1755149421462,0.1056,4730.5,4730.4,0.19699825]
[1755149421648,0.5762,4730.5,4730.4,3.48999825]
[1755149421958,1.0616,4730.5,4730.4,3.49099825]
[1755149422165,1.16796,4730.5,4730.4,3.49099825]
[1755149422662,1.16796,4730.5,4730.4,3.49090353]
[1755149422831,1.16796,4730.5,4730.4,0.19690353]
[1755149422832,1.0616,4730.5,4730.4,0.19690353]
[1755149423031,1.0616,4730.5,4730.4,3.49090353]
[1755149424233,1.0616,4730.5,4730.4,3.49087531]
[1755149425634,1.0616,4730.5,4730.4,0.19687531]
[1755149425868,1.0616,4730.5,4730.4,3.48887531]
[1755149426095,18.64176161,4730.5,4730.4,3.48787531]
[1755149426548,18.64176161,4730.5,4730.4,0.19687531]
[1755149426865,33.14176161,4730.5,4730.4,3.48787531]
[1755149427350,3.0,4730.4,4729.2,5.066]
[1755149427685,12.88527419,4730.0,4729.3,3.291]
[1755149427982,0.956,4729.9,4729.3,3.291]
[1755149428287,0.1056,4729.4,4729.3,3.291]
[1755149428644,1.0616,4729.4,4729.3,3.291]
[1755149430474,1.0616,4729.4,4729.2,5.066]
[1755149430683,0.1056,4729.4,4729.3,3.29]
[1755149432484,0.1056,4729.4,4729.3,3.7832]
[1755149432666,0.1056,4729.4,4729.3,3.29]
[1755149433674,1.0616,4729.4,4729.2,5.066]
[1755149433875,0.5762,4729.4,4729.3,3.286]
[1755149434553,1.0616,4729.4,4729.3,3.286]
[1755149434972,1.0616,4729.4,4729.2,5.066]
[1755149435174,0.1056,4729.4,4729.3,3.286]
[1755149435491,0.1056,4729.4,4728.8,5.066]
[1755149435796,2.25508742,4729.3,4728.9,3.286]
[1755149435956,0.1056,4728.9,4728.8,5.066]
[1755149436162,1.0616,4728.9,4728.8,8.351]
[1755149437094,1.0616,4728.9,4728.8,5.066]
[1755149437295,1.0616,4728.9,4728.1,0.02]
[1755149437496,1.36216,4728.8,4728.2,3.284]
[1755149437696,0.956,4728.7,4728.2,3.284]
[1755149437896,0.1056,4728.3,4728.2,3.284]
[1755149438099,0.5762,4728.3,4728.2,3.284]
[1755149438303,1.0616,4728.3,4728.2,3.284]
[1755149439279,1.0616,4728.3,4728.2,3.48507053]
[1755149439475,1.0616,4728.3,4728.2,0.19707053]
[1755149439796,1.0616,4728.3,4728.2,3.48507053]
[1755149440185,1.16796,4728.3,4728.2,0.19707053]
[1755149440366,1.16796,4728.3,4728.2,3.48507053]
[1755149441116,1.16796,4728.3,4728.2,0.19707053]
[1755149441283,1.16796,4728.3,4728.2,3.48407053]
[1755149441671,0.68256,4728.3,4728.2,3.48407053]
[1755149442066,0.1056,4728.3,4728.2,3.48407053]
[1755149445928,0.1056,4728.3,4728.2,3.48307053]
[1755149446085,0.1056,4728.3,4728.2,0.19707053]
[1755149446271,0.1056,4728.3,4728.2,3.48207053]
[1755149447605,0.1056,4728.3,4728.2,3.97527053]
[1755149447807,0.1056,4728.3,4728.2,0.19707053]
[1755149448008,0.1056,4728.3,4728.2,8.54907053]
[1755149448185,0.1056,4728.3,4728.2,9.41497053]
[1755149450313,0.1056,4728.3,4728.2,5.26507053]
[1755149450480,0.002,4728.4,4728.2,8.54807053]
[1755149450818,0.002,4728.4,4728.3,3.48007053]
[1755149451120,0.002,4728.4,4728.3,0.19707053]
[1755149451283,0.002,4728.4,4728.3,3.48107053]
[1755149451484,0.9386,4728.4,4728.3,0.19707053]
[1755149452044,1.33246,4728.4,4728.3,3.48107053]
[1755149452325,1.33246,4728.4,4728.1,0.021]
[1755149452621,0.9366,4728.3,4728.1,0.021]
[1755149452824,0.39586,4728.4,4727.6,0.001]
[1755149452825,0.9366,4728.2,4727.6,0.001]
[1755149452984,0.9366,4728.1,4727.6,0.001]
[1755149453185,1.069846,4728.0,4727.6,0.001]
[1755149453516,0.9366,4727.9,4727.6,0.001]
[1755149453695,0.9366,4727.8,4727.6,0.001]
[1755149453892,0.133246,4728.0,4727.7,3.283]
[1755149454228,0.12626088,4728.0,4727.7,0.001]
[1755149454432,0.9366,4727.9,4727.7,0.001]
[1755149454729,1.04288609,4727.8,4727.7,0.001]
[1755149455288,1.04288609,4727.8,4727.7,3.288]
[1755149455587,1.04288609,4727.8,4727.6,0.001]
[1755149455808,0.9366,4727.7,4727.6,0.001]
[1755149456819,0.9366,4727.7,4727.6,3.288]
[1755149457024,1.0535147,4727.7,4726.5,5.068]
[1755149457227,0.6133147,4727.7,4726.5,5.068]
[1755149457430,0.9366,4727.6,4726.1,0.02]
[1755149457723,0.1169147,4727.7,4726.6,5.068]
[1755149457724,0.9366,4727.5,4726.6,5.068]
[1755149457897,0.9366,4727.4,4726.6,5.068]
[1755149458099,0.9366,4727.3,4726.6,5.068]
[1755149458401,0.9366,4727.2,4726.5,5.069]
[1755149458607,0.9366,4727.2,4727.1,3.306]
[1755149459007,0.9366,4727.2,4727.1,0.02]
[1755149459212,0.9366,4727.2,4727.1,3.306]
[1755149459528,0.9366,4727.2,4727.1,0.02]
[1755149459729,0.9366,4727.2,4727.1,3.287]
[1755149459915,1.33026,4727.2,4727.1,3.287]
[1755149460119,1.33026,4727.2,4726.5,5.069]
[1755149460296,0.9366,4727.1,4726.1,0.02]
[1755149460503,0.1056,4726.2,4726.1,0.02]
[1755149461400,0.4964,4726.8,4726.1,0.02]
[1755149461600,0.1056,4726.2,4726.1,0.02]
[1755149461802,0.1056,4726.2,4726.1,3.311]
[1755149462719,0.1056,4726.2,4726.1,3.312]
[1755149462899,0.1056,4726.2,4726.1,3.793]
[1755149463101,0.1056,4726.2,4726.1,3.312]
[1755149464232,0.1056,4726.2,4726.1,3.5088875]
[1755149464733,0.1056,4726.2,4726.1,3.312]
[1755149464935,0.1056,4726.2,4726.1,3.50887295]
[1755149467246,0.1056,4726.2,4726.1,3.98987295]
[1755149467444,0.1056,4726.2,4726.1,3.50887295]
[1755149467744,0.1056,4726.2,4726.1,0.021]
[1755149467944,0.1056,4726.2,4726.1,3.50883714]
[1755149468245,0.1056,4726.2,4726.1,3.50883705]
[1755149469625,0.1056,4726.2,4726.1,4.36153705]
[1755149470300,0.1056,4726.2,4726.1,0.21783705]
[1755149470508,0.5458,4726.2,4726.1,0.21783705]
[1755149470705,1.39678,4726.2,4726.1,3.50781507]
[1755149471039,0.90038,4726.2,4726.1,3.50781507]
[1755149471441,0.46018,4726.2,4726.1,3.50781507]
[1755149471738,0.1056,4726.2,4726.1,3.50781507]
[1755149473244,0.5458,4726.2,4726.1,0.21781507]
[1755149473413,1.0422,4726.2,4726.1,3.288]
[1755149474061,1.0422,4726.2,4725.7,5.069]
[1755149474219,3.9366,4726.1,4725.7,5.07]
[1755149474418,0.1056,4725.8,4725.7,5.07]
[1755149474722,1.0422,4725.8,4725.7,5.07]
[1755149474928,1.0422,4725.8,4725.4,5.07]
[1755149475123,0.1056,4723.4,4722.7,0.1056]
[1755149475329,0.07977915,4723.4,4723.2,8.358]
[1755149475527,0.07977915,4723.4,4723.2,5.07]
[1755149475725,0.07977915,4723.4,4723.3,3.288]
[1755149476131,0.07977915,4723.4,4723.3,3.4167]
[1755149476331,0.07977915,4723.4,4723.3,0.1287]
[1755149476546,0.07977915,4723.4,4723.3,3.4157]
[1755149477142,0.07977915,4723.4,4723.3,0.1287]
[1755149477345,0.07977915,4723.4,4723.3,3.4157]
[1755149478051,0.1056,4723.7,4723.3,3.4157]
[1755149478231,0.1056,4723.7,4723.4,0.1287]
[1755149478624,0.4402,4725.5,4723.4,0.1287]
[1755149478826,0.1056,4723.9,4723.4,0.1287]
[1755149479149,0.1056,4723.9,4723.5,3.287]
[1755149479519,0.1056,4723.9,4723.6,0.1287]
[1755149480433,0.1056,4724.1,4723.6,0.1287]
[1755149480965,0.1056,4724.1,4723.6,0.2343]
[1755149481141,0.1056,4724.3,4723.6,0.2343]
[1755149481346,0.1056,4724.3,4723.7,0.1287]
[1755149481524,0.1056,4724.3,4723.8,3.285]
[1755149481720,0.1056,4724.3,4723.9,0.1287]
[1755149482231,0.1056,4724.3,4724.0,0.1287]
[1755149482556,0.1056,4724.3,4724.1,3.4127]
[1755149482764,0.1056,4724.3,4724.1,3.284]
[1755149483061,0.1056,4724.3,4724.2,0.1287]
[1755149483234,0.08088668,4724.3,4724.2,3.4127]
[1755149484159,0.1056,4725.0,4724.2,0.2343]
[1755149484468,0.1056,4725.0,4724.3,5.17552392]
[1755149484961,0.1056,4725.0,4724.4,1.89352392]
[1755149485328,0.4474,4725.5,4724.5,0.19729205]
[1755149485524,0.9464,4725.4,4724.6,0.19729205]
[1755149485849,0.519,4726.4,4724.7,0.32603274]
[1755149486050,0.1056,4725.0,4724.8,0.32603274]
[1755149486226,0.1056,4725.5,4724.9,0.32603274]
[1755149486431,0.1056,4725.5,4725.1,3.0]
[1755149486733,0.1056,4725.5,4725.2,0.19733274]
[1755149486963,0.1056,4725.5,4725.3,0.19733274]
[1755149487164,0.1056,4725.5,4725.4,8.36]
[1755149487741,0.1056,4725.5,4725.4,5.071]
[1755149487941,0.553,4725.5,4725.4,8.359]
[1755149488241,0.553,4725.5,4725.4,8.55630399]
[1755149488567,0.1056,4725.5,4725.4,8.55630399]
[1755149488766,0.1056,4725.5,4725.4,8.55632934]
[1755149489134,0.1056,4725.5,4725.4,5.26832934]
[1755149489332,1.052,4725.5,4725.4,5.26832934]
[1755149489737,1.052,4725.5,4725.4,5.07]
[1755149490135,1.052,4725.5,4723.2,3.0]
[1755149490467,0.1056,4723.5,4723.1,0.02]
[1755149490670,0.1056,4723.4,4723.2,0.326]
[1755149490993,0.1056,4723.4,4723.3,3.288]
[1755149491374,0.1056,4723.8,4723.3,3.614]
[1755149491673,0.4474,4725.3,4723.5,0.1056]
[1755149491968,0.4474,4725.9,4723.6,0.326]
[1755149492138,0.1056,4724.6,4724.1,0.1056]
[1755149492339,0.02,4726.4,4724.2,3.615]
[1755149492573,0.02,4726.4,4724.5,0.1056]
[1755149492760,0.1056,4725.8,4725.0,0.1056]
[1755149493079,0.1056,4725.8,4725.1,3.615]
[1755149493840,0.02,4726.4,4725.2,3.289]
[1755149494082,0.1056,4725.5,4725.2,3.289]
[1755149495081,0.1056,4725.5,4725.3,5.07]
[1755149495247,0.9464,4725.4,4725.3,5.07]
[1755149495443,0.4474,4726.0,4725.3,8.359]
[1755149496042,0.499,4725.9,4725.3,5.07]
[1755149496383,0.1056,4725.4,4725.3,5.07]
[1755149496674,1.052,4725.4,4725.3,5.07]
[1755149497071,1.052,4725.4,4725.3,8.358]
[1755149497273,1.052,4725.4,4725.3,8.359]
[1755149497444,1.052,4725.4,4725.3,5.07]
[1755149497851,1.052,4725.4,4725.3,8.358]
[1755149498966,1.052,4725.4,4725.3,5.07]
[1755149499170,1.052,4725.4,4725.3,8.357]
[1755149500588,1.052,4725.4,4725.3,5.07]
[1755149500746,1.052,4725.4,4725.3,8.357]
[1755149501375,1.052,4725.4,4725.3,5.07]
[1755149501582,1.052,4725.4,4725.3,8.355]
[1755149501784,0.1056,4725.4,4725.3,8.55233428]
[1755149502286,0.002,4725.9,4725.3,8.55233428]
[1755149502491,0.002,4725.9,4725.4,0.19733428]
[1755149502662,0.002,4725.9,4725.5,0.19733428]
[1755149502868,0.002,4725.9,4725.6,3.48333428]
[1755149503062,0.002,4725.9,4725.3,5.07]
[1755149503063,0.002,4725.9,4725.7,3.48333428]
[1755149503269,0.002,4725.9,4725.8,3.48333428]
[1755149503654,0.002,4725.9,4725.8,6.80933428]
[1755149503860,0.002,4725.9,4725.8,6.48333428]
[1755149504292,0.002,4725.9,4725.8,0.19733428]
[1755149504593,0.002,4725.9,4725.8,3.48333428]
[1755149505663,0.002,4725.9,4725.8,0.19733428]
[1755149505897,0.002,4725.9,4725.8,3.48233428]
[1755149506058,0.4494,4725.9,4725.8,3.48233428]
[1755149506475,0.002,4725.9,4725.8,3.48225795]
[1755149507084,0.002,4725.9,4725.8,3.48125795]
[1755149507992,0.0012,4725.9,4725.8,3.48125795]
[1755149508197,0.02,4726.4,4725.8,3.48125795]
[1755149508415,0.02,4726.4,4725.9,0.19725795]
[1755149508562,0.02,4726.4,4726.0,0.19725795]
[1755149508758,0.02,4726.4,4726.1,3.80625795]
[1755149508994,0.02,4726.4,4726.2,0.19725795]
[1755149509201,0.02,4726.4,4726.3,0.19725795]
[1755149509368,0.02,4726.4,4726.3,0.52325795]
[1755149509899,0.02,4726.4,4726.3,3.48025795]
[1755149510484,0.02,4726.4,4726.3,0.19725795]
[1755149510794,0.02,4726.4,4726.3,3.48025795]
[1755149511369,0.02,4726.4,4726.3,3.47925795]
[1755149511572,0.02,4726.4,4726.3,0.19725795]
[1755149511891,0.02,4726.4,4726.3,3.80525795]
[1755149512279,0.02,4726.4,4726.3,3.47925795]
[1755149513371,0.02,4726.4,4726.3,0.19725795]
[1755149513572,0.02,4726.4,4726.3,3.47925795]
[1755149514277,0.02,4726.4,4726.3,0.19725795]
[1755149514469,0.5701,4726.4,4726.3,3.47825795]
[1755149514668,0.5701,4726.4,4726.3,3.47725795]
[1755149514882,0.5701,4726.4,4726.3,0.19725795]
[1755149515202,1.0471,4726.4,4726.3,3.47725795]
[1755149515501,0.1256,4726.4,4726.3,3.47725795]
[1755149515689,0.5701,4726.4,4726.3,3.47725795]
[1755149515874,0.1256,4726.4,4726.3,3.47725795]
[1755149517974,0.1256,4726.4,4726.3,0.19725795]
[1755149518175,0.5701,4726.4,4726.3,3.47625795]
[1755149518371,0.1256,4726.4,4726.3,3.47596951]
[1755149519091,0.5701,4726.4,4726.3,3.47596951]
[1755149519612,0.5701,4726.4,4726.3,8.54496951]
[1755149520415,0.5701,4726.4,4726.3,5.26596951]
[1755149520573,0.5701,4726.4,4726.3,8.54196951]
[1755149520773,0.1256,4726.4,4726.3,8.54196422]
[1755149522309,0.002,4726.5,4726.3,8.54196422]
[1755149522497,0.1076,4726.9,4726.4,0.19696422]
[1755149522670,0.1076,4726.9,4726.5,3.47196422]
[1755149522875,0.002,4726.9,4726.6,0.19696422]
[1755149523071,0.002,4726.9,4726.7,3.47196422]